{"text_format":"1","workbook":"xlsx","n_sheets":4,"sheets":["DAM-tabell 2025","B-side 2025","B-Side 2024","Slutspel"],"not_rendered":{"charts":0,"images":0,"macros":1,"external_links":0,"defined_names":0,"comments":0,"pivot_tables":0},"unopened":[],"bounds":{"document_bytes":16777216,"sheet_cells":100000,"rows_first":2000,"rows_last":500,"rows_between":2000,"halvings":0,"cell_chars":16384,"cell_head_chars":4096},"cells_cut":0,"cells_raw":0,"read":"whole","date_system":"1900"}

{"sheet":"DAM-tabell 2025","index":0,"n_rows":35,"n_cols":16,"rows_kept":35,"cut":false,"hidden":false,"merged":[[0,0,0,15],[34,2,41,14],[17,11,17,13],[2,1,2,13],[3,1,3,10],[3,11,3,13],[14,6,14,10],[16,1,16,13],[15,0,15,15],[30,0,30,14]]}
["Damtabellen 2025"]
[]
["VIT","Uppdaterad 2025-04-27",null,null,null,null,null,null,null,null,null,null,null,null,"VIT",2025]
["Placering","Namn",null,null,null,null,null,null,null,null,null,null,null,null,"Poäng","Totplac."]
[1,"Eva",null,null,null,null,null,null,null,null,null,null,1,null,4]
[2,"Mia",null,null,null,null,null,null,null,null,null,null,1,null,3.6]
[3,"Sissi",null,null,null,null,null,null,null,null,null,null,1,null,3.2]
[4,"Tina",null,null,null,null,null,null,null,null,null,null,1,null,2.8]
[5,"Tua",null,null,null,null,null,null,null,null,null,null,1,null,2.4]
[6,"Karen",null,null,null,null,null,null,null,null,null,null,1,null,2]
[7,"Eva-Karin",null,null,null,null,null,null,null,null,null,null,1,null,1.6]
[8,"Nettan O",null,null,null,null,null,null,null,null,null,null,1,null,1.2]
[9,"BowNettan",null,null,null,null,null,null,null,null,null,null,1,null,0]
[10,"Marika",null,null,null,null,null,null,null,null,null,null,1,null,0]
[null,null,null,null,null,null,"Summa:  ",null,null,null,null,null,{"$f":"SUM(M5:M14)","v":10},null,{"$f":"SUM(O5:O14)","v":20.8}]
[]
["VIT","Omgångar (0 singelmatcher släpar, ej parmatch)",null,null,null,null,null,null,null,null,null,null,null,null,"VIT",2025]
["Omgång",1,2,3,4,5,6,7,8,9,10,"Slutspel",null,null,"Totalt","Släpar"]
["BowNettan",0,null,null,null,null,null,null,null,null,null,null,null,null,{"$f":"SUM(B19:K19)","v":0}]
["Eva",4,null,null,null,null,null,null,null,null,null,null,null,null,4]
["Eva-Karin",1.6,null,null,null,null,null,null,null,null,null,null,null,null,1.6]
["Karen",2,null,null,null,null,null,null,null,null,null,null,null,null,2]
["Marika",0,null,null,null,null,null,null,null,null,null,null,null,null,0]
["Mia",3.6,null,null,null,null,null,null,null,null,null,null,null,null,3.6]
["Nettan O",1.2,null,null,null,null,null,null,null,null,null,null,null,null,1.2]
["Sissi",3.2,null,null,null,null,null,null,null,null,null,null,null,null,3.2]
["Tina",2.8,null,null,null,null,null,null,null,null,null,null,null,null,2.8]
["Tua",2.4,null,null,null,null,null,null,null,null,null,null,null,null,2.4]
[null,{"$f":"SUM(B19:B28)","v":20.799999999999997},0,0,0,0,0,0,0,null,0,null,null,null,{"$f":"SUM(O19:O28)","v":20.799999999999997}]
["Omgång klar","Ja","Nej","Nej","Nej","Nej","Nej","Nej","Nej","Nej","Nej"]
[]
[null,"=","Gemensam omgång . De två bästa av tre räknas. Markerat med GULT."]
[]
[null,"=","Parspel (en sista)"]
[null,null,"Regler parspel: Fyrboll bästboll matchspel (lagspel två och två. Varje lag väljer bästa resultatet per hål. I övrigt som Matchspel. Det lag vinner, som har fler hål upp än vad det är kvar att spela). Man spelar på sitt egna hcp och sin egen boll. 2p per spelare för det vinnande laget, 1p per spelare vid delad match. 0,5p per spelare för det lag som har bästa resultat på senast vunna hål efter 18 spelade hål."]

{"sheet":"B-side 2025","index":1,"n_rows":1,"n_cols":1,"rows_kept":1,"cut":false,"hidden":false,"merged":[[0,0,0,15],[2,1,2,13],[3,1,3,10],[3,11,3,13],[14,6,14,10],[15,0,15,15]]}
["Damtabellen 2025"]

{"sheet":"B-Side 2024","index":2,"n_rows":1,"n_cols":1,"rows_kept":1,"cut":false,"hidden":false,"merged":[[10,6,10,9],[10,22,10,25],[11,0,11,30],[0,0,0,30],[2,1,2,12],[2,17,2,28],[3,1,3,9],[3,10,3,12],[3,17,3,25],[3,26,3,28]]}
["Damtabellen 2024"]

{"sheet":"Slutspel","index":3,"n_rows":30,"n_cols":47,"rows_kept":30,"cut":false,"hidden":false,"merged":[[28,42,28,43],[29,42,29,43],[15,42,15,43],[28,38,28,39],[29,38,29,39],[28,40,28,41],[29,40,29,41],[27,42,27,43],[27,40,27,41],[27,38,27,39],[27,36,27,37],[23,42,23,43],[23,40,23,41],[23,38,23,39],[23,36,23,37],[24,42,24,43],[24,40,24,41],[24,38,24,39],[24,36,24,37],[25,42,25,43],[25,40,25,41],[25,38,25,39],[25,36,25,37],[26,42,26,43],[26,40,26,41],[26,38,26,39],[26,36,26,37],[21,36,21,37],[21,38,21,39],[21,40,21,41],[21,42,21,43],[22,36,22,37],[22,38,22,39],[22,40,22,41],[22,42,22,43],[16,36,16,37],[16,38,16,39],[16,40,16,41],[16,42,16,43],[20,36,20,37],[20,38,20,39],[20,40,20,41],[20,42,20,43],[19,36,19,37],[19,38,19,39],[19,40,19,41],[19,42,19,43],[24,29,24,30],[24,31,24,32],[23,29,23,30],[23,31,23,32],[25,25,25,26],[13,25,13,34],[14,36,14,46],[15,36,15,37],[15,38,15,39],[15,40,15,41],[13,36,13,46],[18,36,18,37],[18,38,18,39],[18,40,18,41],[18,42,18,43],[17,36,17,37],[17,38,17,39],[17,40,17,41],[17,42,17,43],[15,25,15,26],[16,25,16,26],[17,27,17,28],[17,25,17,26],[16,31,16,32],[26,27,26,28],[27,25,27,26],[27,27,27,28],[27,31,27,32],[27,29,27,30],[26,25,26,26],[26,29,26,30],[26,31,26,32],[18,27,18,28],[25,27,25,28],[23,25,23,26],[23,27,23,28],[18,31,18,32],[19,31,19,32],[19,27,19,28],[19,25,19,26],[19,29,19,30],[18,25,18,26],[18,29,18,30],[22,25,22,34],[25,29,25,30],[25,31,25,32],[24,25,24,26],[24,27,24,28],[22,13,22,20],[23,13,23,20],[13,0,13,22],[14,1,14,8],[15,1,15,8],[22,1,22,8],[23,1,23,8],[14,13,14,20],[0,0,0,34],[2,1,2,8],[2,13,2,20],[3,1,3,8],[3,13,3,20],[16,27,16,28],[15,27,15,28],[14,25,14,34],[15,31,15,32],[15,13,15,20],[17,31,17,32],[15,29,15,30],[16,29,16,30],[17,29,17,30]]}
["Damtabellen 2024 - Slutställning/Slutspel"]
[]
["VIT","Uppdaterad 2024-04-26",null,null,null,null,null,null,null,"VIT",2024,null,"ROSA","Uppdaterad 2024-04-26",null,null,null,null,null,null,null,"ROSA",2024]
["Plac.","Namn",null,null,null,null,null,null,null,"Poäng","Totplac.",null,"Plac.","Namn",null,null,null,null,null,null,null,"Poäng","Totplac."]
[1,null,null,null,null,null,null,null,null,null,null,null,1]
[2,null,null,null,null,null,null,null,null,null,null,null,2]
[3,null,null,null,null,null,null,null,null,null,null,null,3]
[4,null,null,null,null,null,null,null,null,null,null,null,4]
[5,null,null,null,null,null,null,null,null,null,null,null,5]
[6,null,null,null,null,null,null,null,null,null,null,null,6]
[7,null,null,null,null,null,null,null,null,null,null,null,7]
["Summa: ",null,null,null,null,null,null,null,null,null,null,null,"Summa: "]
[]
["SLUTSPELSGRUPPER 2024",null,null,null,null,null,null,null,null,null,null,null,null,null,null,null,null,null,null,null,null,null,null,null,null,"SLUTSPEL 2024",null,null,null,null,null,null,null,null,null,null,"SLUTSPEL 2024"]
[1,"Grupp 1",null,null,null,null,null,null,null,1,2024,null,2,"Grupp 2",null,null,null,null,null,null,null,2,2024,null,null,"BOLLAR - FREDAG",null,null,null,null,null,null,null,null,null,null,"STÄLLNING"]
[null,"Namn",null,null,null,null,null,null,null,null,"Totplac.",null,null,"Namn",null,null,null,null,null,null,null,null,"Totplac.",null,null,"BOLL 1",null,"BOLL 2",null,"BOLL 3",null,"BOLL 4",null,"BOLL 5","Grupp",null,"Namn",null,"Fredag",null,"Namn",null,"Lördag",null,"Namn","Totalt"]
[1,"?",null,null,null,null,null,null,null,null,1,null,1,"?",null,null,null,null,null,null,null,null,6,null,null,"?",null,"?",null,"?",null,"?",null,"?",4,null,null,null,null,null,null,null,null,null,null,null,1]
[2,"?",null,null,null,null,null,null,null,null,2,null,2,"?",null,null,null,null,null,null,null,null,7,null,null,"?",null,"?",null,"?",null,"?",null,"?",3,null,null,null,null,null,null,null,null,null,null,null,2]
[3,"?",null,null,null,null,null,null,null,null,3,null,3,"?",null,null,null,null,null,null,null,null,8,null,null,"?",null,"?",null,"?",null,"?",null,"?",2,null,null,null,null,null,null,null,null,null,null,null,3]
[4,"?",null,null,null,null,null,null,null,null,4,null,4,"?",null,null,null,null,null,null,null,null,9,null,null,"?",null,"?",null,"?",null,"?",null,"?",1,null,null,null,null,null,null,null,null,null,null,null,4]
[5,"?",null,null,null,null,null,null,null,null,5,null,5,"?",null,null,null,null,null,null,null,null,10,null,null,null,null,null,null,null,null,null,null,null,null,null,null,null,null,null,null,null,null,null,null,null,5]
[null,null,null,null,null,null,null,null,null,null,null,null,null,null,null,null,null,null,null,null,null,null,null,null,null,null,null,null,null,null,null,null,null,null,null,null,null,null,null,null,null,null,null,null,null,null,6]
[3,"Grupp 3",null,null,null,null,null,null,null,3,2024,null,4,"Grupp 4",null,null,null,null,null,null,null,4,2024,null,null,"BOLLAR - LÖRDAG",null,null,null,null,null,null,null,null,null,null,null,null,null,null,null,null,null,null,null,null,7]
[null,"Namn",null,null,null,null,null,null,null,null,"Totplac.",null,null,"Namn",null,null,null,null,null,null,null,null,"Totplac.",null,null,"BOLL 1",null,"BOLL 2",null,"BOLL 3",null,"BOLL 4",null,"BOLL 5","Grupp",null,null,null,null,null,null,null,null,null,null,null,8]
[1,"?",null,null,null,null,null,null,null,null,11,null,1,"?",null,null,null,null,null,null,null,null,16,null,null,"?",null,"?",null,"?",null,"?",null,"?",4,null,null,null,null,null,null,null,null,null,null,null,9]
[2,"?",null,null,null,null,null,null,null,null,12,null,2,"?",null,null,null,null,null,null,null,null,17,null,null,"?",null,"?",null,"?",null,"?",null,"?",3,null,null,null,null,null,null,null,null,null,null,null,10]
[3,"?",null,null,null,null,null,null,null,null,13,null,3,"?",null,null,null,null,null,null,null,null,18,null,null,"?",null,"?",null,"?",null,"?",null,"?",2,null,null,null,null,null,null,null,null,null,null,null,11]
[4,"?",null,null,null,null,null,null,null,null,14,null,4,"?",null,null,null,null,null,null,null,null,19,null,null,"?",null,"?",null,"?",null,"?",null,"?",1,null,null,null,null,null,null,null,null,null,null,null,12]
[5,"?",null,null,null,null,null,null,null,null,15,null,5,"?",null,null,null,null,null,null,null,null,20,null,null,null,null,null,null,null,null,null,null,null,null,null,null,null,null,null,null,null,null,null,null,null,13]
[null,null,null,null,null,null,null,null,null,null,null,null,null,null,null,null,null,null,null,null,null,null,null,null,null,null,null,null,null,null,null,null,null,null,null,null,null,null,null,null,null,null,null,null,null,null,14]